[Event "Late-Titled-Tuesday-Blitz-October-17-2023"]
[Site "Chess.com"]
[Date "2023.10.17"]
[Round "2"]
[White "Cirky"]
[Black "Vojtap"]
[Result "0-1"]
[WhiteElo "2448"]
[BlackElo "2232"]
[TimeControl "180+1"]
[EndTime "14:17:45 PDT"]
[Termination "Vojtap won by checkmate"]

1. d4 {[%clk 0:02:00.7]} 1... Nf6 {[%clk 0:02:58.3]} 2. c4 {[%clk 0:02:00.7]}
2... g6 {[%clk 0:02:58.3]} 3. h4 {[%clk 0:02:00.6]} 3... c5 {[%clk 0:02:55.7]}
4. d5 {[%clk 0:02:00.8]} 4... d6 {[%clk 0:02:52.5]} 5. Nc3 {[%clk 0:01:59.3]}
5... e6 {[%clk 0:02:50.9]} 6. e4 {[%clk 0:01:59.1]} 6... exd5 {[%clk 0:02:50.6]}
7. exd5 {[%clk 0:01:59.3]} 7... Bg7 {[%clk 0:02:44.3]} 8. Be2 {[%clk 0:01:59.3]}
8... h5 {[%clk 0:02:40.1]} 9. Bg5 {[%clk 0:01:53]} 9... O-O {[%clk 0:02:39.3]}
10. Nf3 {[%clk 0:01:53.6]} 10... Bg4 {[%clk 0:02:36.6]} 11. O-O {[%clk
0:01:53.7]} 11... a6 {[%clk 0:02:34.6]} 12. Ne4 {[%clk 0:01:07.4]} 12... Re8
{[%clk 0:02:27.2]} 13. Nfd2 {[%clk 0:01:06.9]} 13... Bxe2 {[%clk 0:02:12.8]} 14.
Qxe2 {[%clk 0:01:07.8]} 14... Nbd7 {[%clk 0:02:12.7]} 15. Qf3 {[%clk 0:00:58.8]}
15... Re5 {[%clk 0:01:55.2]} 16. Nxd6 {[%clk 0:00:42.6]} 16... Qb6 {[%clk
0:01:45.5]} 17. N6e4 {[%clk 0:00:35.5]} 17... Nxe4 {[%clk 0:01:36.3]} 18. Nxe4
{[%clk 0:00:34.7]} 18... Qxb2 {[%clk 0:01:33.4]} 19. Rab1 {[%clk 0:00:31.6]}
19... Qd4 {[%clk 0:01:32.8]} 20. Nd6 {[%clk 0:00:27.2]} 20... f6 {[%clk
0:01:13.7]} 21. Rxb7 {[%clk 0:00:21.7]} 21... Rd8 {[%clk 0:01:10.1]} 22. Be3
{[%clk 0:00:15]} 22... Qxh4 {[%clk 0:01:08.9]} 23. Rfb1 {[%clk 0:00:11.8]} 23...
Re7 {[%clk 0:01:01.1]} 24. g3 {[%clk 0:00:10.1]} 24... Qh3 {[%clk 0:00:59.6]}
25. Ra7 {[%clk 0:00:09.6]} 25... Ne5 {[%clk 0:00:58.3]} 26. Qg2 {[%clk
0:00:04.3]} 26... Qxg2+ {[%clk 0:00:57.7]} 27. Kxg2 {[%clk 0:00:04.8]} 27...
Rxa7 {[%clk 0:00:57.8]} 28. Bxc5 {[%clk 0:00:05]} 28... Rc7 {[%clk 0:00:56.6]}
29. Bb6 {[%clk 0:00:04.6]} 29... Rb8 {[%clk 0:00:56.1]} 30. Bxc7 {[%clk
0:00:03]} 30... Rxb1 {[%clk 0:00:55.7]} 31. c5 {[%clk 0:00:03.8]} 31... Bf8
{[%clk 0:00:48.2]} 32. c6 {[%clk 0:00:02.8]} 32... Rd1 {[%clk 0:00:48.1]} 33.
Ne4 {[%clk 0:00:01.8]} 33... Kf7 {[%clk 0:00:44.6]} 34. d6 {[%clk 0:00:02.1]}
34... Nxc6 {[%clk 0:00:42.1]} 35. Nc5 {[%clk 0:00:01.3]} 35... Ne5 {[%clk
0:00:40.8]} 36. d7 {[%clk 0:00:01.1]} 36... Nxd7 {[%clk 0:00:40.3]} 37. Nxa6
{[%clk 0:00:01.1]} 37... Bd6 {[%clk 0:00:33.8]} 38. Bxd6 {[%clk 0:00:01.5]}
38... Rxd6 {[%clk 0:00:33.7]} 39. Nb4 {[%clk 0:00:02.4]} 39... Rd2 {[%clk
0:00:32]} 40. a4 {[%clk 0:00:02.6]} 40... Rb2 {[%clk 0:00:31.3]} 41. Nd5 {[%clk
0:00:02.9]} 41... Ra2 {[%clk 0:00:30.2]} 42. Nc3 {[%clk 0:00:03.3]} 42... Ra3
{[%clk 0:00:30]} 43. Ne4 {[%clk 0:00:04.1]} 43... Rxa4 {[%clk 0:00:29.5]} 44. f3
{[%clk 0:00:04.7]} 44... Ra2+ {[%clk 0:00:27.2]} 45. Kh3 {[%clk 0:00:05]} 45...
Ne5 {[%clk 0:00:27.1]} 46. f4 {[%clk 0:00:05.1]} 46... Ng4 {[%clk 0:00:27]} 47.
Nd6+ {[%clk 0:00:01.2]} 47... Ke6 {[%clk 0:00:26.3]} 48. Nf5 {[%clk 0:00:01.8]}
48... Rh2# {[%clk 0:00:25.5]} 0-1

[Event "Late-Titled-Tuesday-Blitz-October-17-2023"]
[Site "Chess.com"]
[Date "2023.10.17"]
[Round "2"]
[White "keepitcoming"]
[Black "victormago"]
[Result "1-0"]
[WhiteElo "2239"]
[BlackElo "2445"]
[TimeControl "180+1"]
[EndTime "14:17:46 PDT"]
[Termination "keepitcoming won on time"]

1. d4 {[%clk 0:03:00.9]} 1... Nf6 {[%clk 0:02:57.9]} 2. c4 {[%clk 0:03:00.9]}
2... c5 {[%clk 0:02:57.1]} 3. d5 {[%clk 0:02:59.9]} 3... e6 {[%clk 0:02:57.3]}
4. Nc3 {[%clk 0:02:59.5]} 4... exd5 {[%clk 0:02:57.2]} 5. cxd5 {[%clk
0:03:00.4]} 5... d6 {[%clk 0:02:57.4]} 6. e4 {[%clk 0:03:00.4]} 6... g6 {[%clk
0:02:57.7]} 7. Bd3 {[%clk 0:02:56.9]} 7... Bg7 {[%clk 0:02:57.7]} 8. Nge2 {[%clk
0:02:57.3]} 8... O-O {[%clk 0:02:57.8]} 9. O-O {[%clk 0:02:57.2]} 9... a6 {[%clk
0:02:58.4]} 10. a4 {[%clk 0:02:56.4]} 10... Nbd7 {[%clk 0:02:58.1]} 11. Ng3
{[%clk 0:02:55.8]} 11... Ne5 {[%clk 0:02:55]} 12. Be2 {[%clk 0:02:55.4]} 12...
h5 {[%clk 0:02:54.8]} 13. h3 {[%clk 0:02:52.1]} 13... Re8 {[%clk 0:02:46.5]} 14.
Bg5 {[%clk 0:02:51.2]} 14... Qb6 {[%clk 0:02:44.5]} 15. Qd2 {[%clk 0:02:50.1]}
15... Nh7 {[%clk 0:02:41.7]} 16. a5 {[%clk 0:02:48.2]} 16... Qc7 {[%clk
0:02:35.9]} 17. Bh6 {[%clk 0:02:48.2]} 17... Bh8 {[%clk 0:02:16.4]} 18. Rfc1
{[%clk 0:02:39.6]} 18... Qe7 {[%clk 0:01:58.7]} 19. Na4 {[%clk 0:02:25.9]} 19...
Nd7 {[%clk 0:01:50.6]} 20. f3 {[%clk 0:02:12.6]} 20... Be5 {[%clk 0:01:47.1]}
21. Nf1 {[%clk 0:02:09.3]} 21... Rb8 {[%clk 0:01:39.7]} 22. Ra3 {[%clk
0:02:02.1]} 22... f5 {[%clk 0:01:21]} 23. exf5 {[%clk 0:01:50.7]} 23... gxf5
{[%clk 0:01:19.5]} 24. Bd3 {[%clk 0:01:48.5]} 24... Ndf6 {[%clk 0:01:11.8]} 25.
Bf4 {[%clk 0:01:44.5]} 25... Bd4+ {[%clk 0:00:59.8]} 26. Kh1 {[%clk 0:01:43.1]}
26... Bd7 {[%clk 0:00:55.3]} 27. Nb6 {[%clk 0:01:43.1]} 27... h4 {[%clk
0:00:53.5]} 28. Nc4 {[%clk 0:01:40.1]} 28... Nh5 {[%clk 0:00:46.6]} 29. Bxd6
{[%clk 0:01:35.8]} 29... Qg7 {[%clk 0:00:46.8]} 30. Re1 {[%clk 0:01:13.4]} 30...
Rbd8 {[%clk 0:00:33.9]} 31. Bh2 {[%clk 0:01:03.9]} 31... Ng5 {[%clk 0:00:19]}
32. Nd6 {[%clk 0:00:52]} 32... Rxe1 {[%clk 0:00:17.4]} 33. Qxe1 {[%clk
0:00:50.4]} 33... Bb5 {[%clk 0:00:08.5]} 34. Nxb5 {[%clk 0:00:44.6]} 34... axb5
{[%clk 0:00:07.8]} 35. Qxh4 {[%clk 0:00:44.9]} 35... Nf6 {[%clk 0:00:05]} 36.
Bxf5 {[%clk 0:00:42.2]} 36... Rxd5 {[%clk 0:00:04]} 37. Bd3 {[%clk 0:00:35]}
37... c4 {[%clk 0:00:03]} 38. Bb1 {[%clk 0:00:30.1]} 38... Bxb2 {[%clk
0:00:03.3]} 39. Re3 {[%clk 0:00:27.4]} 39... Rd1 {[%clk 0:00:03.3]} 40. Re1
{[%clk 0:00:27.7]} 40... Rxe1 {[%clk 0:00:02.6]} 41. Qxe1 {[%clk 0:00:28.6]}
41... Bd4 {[%clk 0:00:02.3]} 42. Be5 {[%clk 0:00:22.6]} 42... Nxf3 {[%clk
0:00:01.9]} 43. Qd1 {[%clk 0:00:11.3]} 1-0

[Event "Late-Titled-Tuesday-Blitz-October-17-2023"]
[Site "Chess.com"]
[Date "2023.10.17"]
[Round "2"]
[White "Jarming"]
[Black "ElenGajger"]
[Result "0-1"]
[WhiteElo "2785"]
[BlackElo "2363"]
[TimeControl "180+1"]
[EndTime "14:17:48 PDT"]
[Termination "ElenGajger won by resignation"]

1. e4 {[%clk 0:03:00.9]} 1... c5 {[%clk 0:02:59.8]} 2. c3 {[%clk 0:02:59.1]}
2... Nf6 {[%clk 0:02:57.5]} 3. e5 {[%clk 0:02:58.5]} 3... Nd5 {[%clk 0:02:58]}
4. Nf3 {[%clk 0:02:58.5]} 4... g6 {[%clk 0:02:57.9]} 5. Bc4 {[%clk 0:02:58.7]}
5... Nb6 {[%clk 0:02:57.7]} 6. Bb3 {[%clk 0:02:59.1]} 6... Bg7 {[%clk
0:02:57.8]} 7. d4 {[%clk 0:02:58.6]} 7... cxd4 {[%clk 0:02:58.7]} 8. cxd4 {[%clk
0:02:59.3]} 8... O-O {[%clk 0:02:58.4]} 9. O-O {[%clk 0:02:57.3]} 9... d6 {[%clk
0:02:58.7]} 10. Bf4 {[%clk 0:02:46.6]} 10... dxe5 {[%clk 0:02:57.2]} 11. Nxe5
{[%clk 0:02:46.6]} 11... Nc6 {[%clk 0:02:49.1]} 12. Nxc6 {[%clk 0:02:45.7]}
12... bxc6 {[%clk 0:02:50]} 13. Qf3 {[%clk 0:02:35.5]} 13... Nd5 {[%clk
0:02:45.5]} 14. Be5 {[%clk 0:02:34.4]} 14... a5 {[%clk 0:02:27.3]} 15. Nc3
{[%clk 0:02:32.9]} 15... Bxe5 {[%clk 0:02:12.1]} 16. dxe5 {[%clk 0:02:31.7]}
16... Nxc3 {[%clk 0:02:12.2]} 17. Qxc3 {[%clk 0:02:30.4]} 17... a4 {[%clk
0:02:08.9]} 18. Bc2 {[%clk 0:02:28.6]} 18... Be6 {[%clk 0:02:05.2]} 19. Rfd1
{[%clk 0:02:27.1]} 19... Qb6 {[%clk 0:02:04.7]} 20. Be4 {[%clk 0:02:25.9]} 20...
Rab8 {[%clk 0:01:55.5]} 21. Rd2 {[%clk 0:02:19.2]} 21... Rfc8 {[%clk 0:01:47.9]}
22. h4 {[%clk 0:02:17.9]} 22... Qb4 {[%clk 0:01:45.7]} 23. Qe3 {[%clk
0:02:10.8]} 23... Bd5 {[%clk 0:01:39.2]} 24. Bxd5 {[%clk 0:02:00.4]} 24... cxd5
{[%clk 0:01:40.1]} 25. e6 {[%clk 0:02:01.3]} 25... f6 {[%clk 0:01:33.5]} 26. h5
{[%clk 0:02:01]} 26... Qe4 {[%clk 0:01:22.9]} 27. hxg6 {[%clk 0:01:58.4]} 27...
hxg6 {[%clk 0:01:17]} 28. Qg3 {[%clk 0:01:57.7]} 28... Kg7 {[%clk 0:01:14.3]}
29. Qe3 {[%clk 0:01:39.3]} 29... Qxe3 {[%clk 0:01:09.2]} 30. fxe3 {[%clk
0:01:40.2]} 30... Rc6 {[%clk 0:01:08.1]} 31. Rxd5 {[%clk 0:01:37.8]} 31... Rxb2
{[%clk 0:01:07.2]} 32. Ra5 {[%clk 0:01:31.1]} 32... Rxe6 {[%clk 0:01:00.1]} 33.
Rxa4 {[%clk 0:01:31.4]} 33... Rxe3 {[%clk 0:01:00.3]} 34. Rg4 {[%clk 0:01:30]}
34... Ra3 {[%clk 0:00:56.1]} 35. Re4 {[%clk 0:01:28.9]} 35... e5 {[%clk
0:00:54.5]} 36. Rd1 {[%clk 0:01:27.3]} 36... Raxa2 {[%clk 0:00:52.3]} 37. Rd7+
{[%clk 0:01:27.9]} 37... Kh6 {[%clk 0:00:51.9]} 38. Rg4 {[%clk 0:01:28.4]} 38...
Rf2 {[%clk 0:00:39.6]} 39. Rd6 {[%clk 0:01:24.2]} 39... Rf5 {[%clk 0:00:32.7]}
40. Rd8 {[%clk 0:01:17.8]} 40... Rg5 {[%clk 0:00:30]} 41. Rh8+ {[%clk
0:01:14.2]} 41... Kg7 {[%clk 0:00:29.9]} 42. Rxg5 {[%clk 0:01:14.8]} 42... fxg5
{[%clk 0:00:23.4]} 43. Rb8 {[%clk 0:01:14.5]} 43... Kf6 {[%clk 0:00:23.3]} 44.
Rf8+ {[%clk 0:01:13.6]} 44... Ke6 {[%clk 0:00:23.2]} 45. Kh2 {[%clk 0:01:11.8]}
45... Ra3 {[%clk 0:00:21]} 46. g3 {[%clk 0:01:07]} 46... g4 {[%clk 0:00:20.4]}
47. Re8+ {[%clk 0:01:05]} 47... Kf5 {[%clk 0:00:20.5]} 48. Rf8+ {[%clk
0:01:03.4]} 48... Ke4 {[%clk 0:00:20.1]} 49. Rf6 {[%clk 0:01:03.6]} 49... Ra2+
{[%clk 0:00:19.6]} 50. Kg1 {[%clk 0:01:03.8]} 50... Ke3 {[%clk 0:00:19.1]} 51.
Rb6 {[%clk 0:00:58]} 51... e4 {[%clk 0:00:17.9]} 52. Rb3+ {[%clk 0:00:58.1]}
52... Kd4 {[%clk 0:00:18.1]} 53. Rb6 {[%clk 0:00:57.8]} 53... e3 {[%clk
0:00:17.2]} 54. Kf1 {[%clk 0:00:57.1]} 54... Ke4 {[%clk 0:00:16.6]} 55. Rf6
{[%clk 0:00:55.9]} 55... Rf2+ {[%clk 0:00:15.8]} 56. Rxf2 {[%clk 0:00:55.4]}
56... exf2 {[%clk 0:00:16.7]} 57. Kxf2 {[%clk 0:00:56.3]} 57... Kd3 {[%clk
0:00:17.1]} 58. Kf1 {[%clk 0:00:53.8]} 58... Ke3 {[%clk 0:00:17.4]} 59. Kg2
{[%clk 0:00:54.5]} 59... Ke2 {[%clk 0:00:17.7]} 60. Kg1 {[%clk 0:00:50]} 60...
Kf3 {[%clk 0:00:17.8]} 61. Kh2 {[%clk 0:00:49.9]} 61... Kf2 {[%clk 0:00:18.1]}
62. Kh1 {[%clk 0:00:50.6]} 62... Kxg3 {[%clk 0:00:18.4]} 63. Kg1 {[%clk
0:00:51.5]} 63... Kf3 {[%clk 0:00:18.2]} 64. Kh1 {[%clk 0:00:52.4]} 64... g3
{[%clk 0:00:18.1]} 65. Kg1 {[%clk 0:00:53.3]} 65... g2 {[%clk 0:00:18.3]} 66.
Kh2 {[%clk 0:00:53.4]} 66... Kf2 {[%clk 0:00:18.6]} 0-1

[Event "Late-Titled-Tuesday-Blitz-October-17-2023"]
[Site "Chess.com"]
[Date "2023.10.17"]
[Round "2"]
[White "Noki102"]
[Black "Byniolus"]
[Result "0-1"]
[WhiteElo "2453"]
[BlackElo "2784"]
[TimeControl "180+1"]
[EndTime "14:17:49 PDT"]
[Termination "Byniolus won on time"]

1. d4 {[%clk 0:03:00.2]} 1... d6 {[%clk 0:03:00.2]} 2. e4 {[%clk 0:02:56.2]}
2... Nf6 {[%clk 0:03:00.3]} 3. Nc3 {[%clk 0:02:56.3]} 3... c6 {[%clk 0:03:00.9]}
4. g3 {[%clk 0:02:55.4]} 4... b5 {[%clk 0:03:00.6]} 5. Bg2 {[%clk 0:02:54.7]}
5... b4 {[%clk 0:02:56.9]} 6. Nce2 {[%clk 0:02:54.8]} 6... e5 {[%clk 0:02:57.4]}
7. Be3 {[%clk 0:02:26.9]} 7... Nbd7 {[%clk 0:02:56.6]} 8. Qd2 {[%clk 0:02:20]}
8... a5 {[%clk 0:02:51.3]} 9. a3 {[%clk 0:02:14.9]} 9... bxa3 {[%clk 0:02:48.4]}
10. Rxa3 {[%clk 0:01:56.9]} 10... d5 {[%clk 0:02:44.3]} 11. exd5 {[%clk
0:01:52.8]} 11... Bxa3 {[%clk 0:02:07.9]} 12. dxc6 {[%clk 0:01:52.7]} 12... Bxb2
{[%clk 0:02:04.7]} 13. cxd7+ {[%clk 0:01:46.4]} 13... Bxd7 {[%clk 0:02:05.6]}
14. dxe5 {[%clk 0:01:26.6]} 14... Bxe5 {[%clk 0:02:02.2]} 15. Nf3 {[%clk
0:01:19.1]} 15... Bc7 {[%clk 0:01:54.1]} 16. Bc5 {[%clk 0:01:11.3]} 16... Be6
{[%clk 0:01:38.5]} 17. Qg5 {[%clk 0:00:54.9]} 17... Qd5 {[%clk 0:01:03.8]} 18.
Qxg7 {[%clk 0:00:45.4]} 18... O-O-O {[%clk 0:00:58.1]} 19. O-O {[%clk
0:00:37.1]} 19... Qxc5 {[%clk 0:00:37.8]} 20. Qxf6 {[%clk 0:00:36.8]} 20... Rhe8
{[%clk 0:00:28.4]} 21. Nfd4 {[%clk 0:00:28.9]} 21... Be5 {[%clk 0:00:13.6]} 22.
Nxe6 {[%clk 0:00:29.2]} 22... Bxf6 {[%clk 0:00:09.3]} 23. Nxc5 {[%clk 0:00:29]}
23... Rxe2 {[%clk 0:00:10.2]} 24. Rb1 {[%clk 0:00:09.9]} 24... Bd4 {[%clk
0:00:06.1]} 25. Nd3 {[%clk 0:00:06.5]} 25... Rxc2 {[%clk 0:00:04]} 26. Bh3+
{[%clk 0:00:02.2]} 26... Kc7 {[%clk 0:00:04.3]} 27. Rb5 {[%clk 0:00:02.7]} 27...
Bb6 {[%clk 0:00:04.2]} 28. Nf4 {[%clk 0:00:02.6]} 28... Rdd2 {[%clk 0:00:03.2]}
29. Nd5+ {[%clk 0:00:02.2]} 29... Rxd5 {[%clk 0:00:02.9]} 30. Rxd5 {[%clk
0:00:02.3]} 30... Rxf2 {[%clk 0:00:03.8]} 31. Kh1 {[%clk 0:00:01.9]} 31... a4
{[%clk 0:00:03.4]} 32. Rd7+ {[%clk 0:00:02.2]} 32... Kc6 {[%clk 0:00:03.3]} 33.
Rd3 {[%clk 0:00:02]} 33... Bc5 {[%clk 0:00:03.1]} 34. Bg2+ {[%clk 0:00:02.5]}
34... Kb6 {[%clk 0:00:02.8]} 35. Bd5 {[%clk 0:00:03.1]} 35... a3 {[%clk
0:00:01.9]} 36. Rb3+ {[%clk 0:00:02.7]} 36... Ka5 {[%clk 0:00:01.6]} 37. Rc3
{[%clk 0:00:01.7]} 37... Bb4 {[%clk 0:00:01.7]} 0-1

[Event "Late-Titled-Tuesday-Blitz-October-17-2023"]
[Site "Chess.com"]
[Date "2023.10.17"]
[Round "2"]
[White "Siemba"]
[Black "Resignify"]
[Result "1-0"]
[WhiteElo "2560"]
[BlackElo "2344"]
[TimeControl "180+1"]
[EndTime "14:17:50 PDT"]
[Termination "Siemba won on time"]

1. e4 {[%clk 0:03:00.9]} 1... d6 {[%clk 0:02:59.9]} 2. d4 {[%clk 0:03:00.8]}
2... Nf6 {[%clk 0:03:00]} 3. Nc3 {[%clk 0:03:01.2]} 3... g6 {[%clk 0:03:00.3]}
4. Be3 {[%clk 0:03:01.2]} 4... c6 {[%clk 0:02:57.5]} 5. Qd2 {[%clk 0:03:01.1]}
5... b5 {[%clk 0:02:54.4]} 6. Bd3 {[%clk 0:02:54.4]} 6... Qc7 {[%clk 0:02:46]}
7. O-O-O {[%clk 0:02:53.7]} 7... Nbd7 {[%clk 0:02:41.1]} 8. f4 {[%clk
0:02:44.9]} 8... Ng4 {[%clk 0:02:38.4]} 9. Nf3 {[%clk 0:02:39.4]} 9... Nxe3
{[%clk 0:02:35.8]} 10. Qxe3 {[%clk 0:02:37.7]} 10... Bg7 {[%clk 0:02:35.9]} 11.
e5 {[%clk 0:02:28.2]} 11... Nb6 {[%clk 0:02:23.5]} 12. Bxb5 {[%clk 0:01:46.7]}
12... cxb5 {[%clk 0:02:13.9]} 13. Nxb5 {[%clk 0:01:47]} 13... Qd7 {[%clk
0:01:59.3]} 14. exd6 {[%clk 0:01:44.3]} 14... O-O {[%clk 0:01:50.6]} 15. dxe7
{[%clk 0:01:26.8]} 15... Re8 {[%clk 0:01:44.6]} 16. Qb3 {[%clk 0:01:26.1]} 16...
Ba6 {[%clk 0:01:21]} 17. a4 {[%clk 0:01:05.7]} 17... Bxb5 {[%clk 0:01:14.4]} 18.
axb5 {[%clk 0:01:02]} 18... Rxe7 {[%clk 0:01:05.2]} 19. Ne5 {[%clk 0:01:01.2]}
19... Qd5 {[%clk 0:00:41.4]} 20. Qxd5 {[%clk 0:00:48]} 20... Nxd5 {[%clk
0:00:40.9]} 21. g3 {[%clk 0:00:41]} 21... Rc7 {[%clk 0:00:28.1]} 22. Rd3 {[%clk
0:00:32.8]} 22... Rb8 {[%clk 0:00:20.5]} 23. Rb3 {[%clk 0:00:28.9]} 23... a6
{[%clk 0:00:09.3]} 24. Kd2 {[%clk 0:00:17.6]} 24... Rxb5 {[%clk 0:00:06.6]} 25.
Rxb5 {[%clk 0:00:16.6]} 25... axb5 {[%clk 0:00:07.5]} 26. Ra1 {[%clk 0:00:16.4]}
26... Bxe5 {[%clk 0:00:06]} 27. fxe5 {[%clk 0:00:15.7]} 27... Kf8 {[%clk
0:00:04.1]} 28. c3 {[%clk 0:00:15.5]} 28... Ke7 {[%clk 0:00:04.1]} 29. Ra5
{[%clk 0:00:15.4]} 29... Rb7 {[%clk 0:00:03.1]} 30. Kd3 {[%clk 0:00:15.4]} 30...
Ke6 {[%clk 0:00:02.4]} 31. g4 {[%clk 0:00:14.4]} 31... h6 {[%clk 0:00:02.4]} 32.
Ra6+ {[%clk 0:00:14.3]} 32... Ke7 {[%clk 0:00:02.6]} 33. Rd6 {[%clk 0:00:14.1]}
33... Nc7 {[%clk 0:00:02.3]} 34. Rc6 {[%clk 0:00:13.6]} 34... Ne6 {[%clk
0:00:02.3]} 35. h4 {[%clk 0:00:12.9]} 35... Nf4+ {[%clk 0:00:02.3]} 36. Ke4
{[%clk 0:00:13.4]} 36... Ng2 {[%clk 0:00:02.7]} 37. h5 {[%clk 0:00:13.6]} 37...
gxh5 {[%clk 0:00:03.6]} 38. gxh5 {[%clk 0:00:13.9]} 38... Rb8 {[%clk 0:00:02.6]}
39. Rxh6 {[%clk 0:00:14]} 39... Ne1 {[%clk 0:00:01.1]} 40. Rc6 {[%clk
0:00:12.9]} 40... Nc2 {[%clk 0:00:01.1]} 41. Rc7+ {[%clk 0:00:11.6]} 41... Kf8
{[%clk 0:00:01.5]} 42. h6 {[%clk 0:00:12]} 42... Kg8 {[%clk 0:00:01.6]} 43. h7+
{[%clk 0:00:11.6]} 1-0

[Event "Late-Titled-Tuesday-Blitz-October-17-2023"]
[Site "Chess.com"]
[Date "2023.10.17"]
[Round "2"]
[White "Chessdreamer2020"]
[Black "nicholas_ilic"]
[Result "0-1"]
[WhiteElo "2491"]
[BlackElo "2336"]
[TimeControl "180+1"]
[EndTime "14:17:54 PDT"]
[Termination "nicholas_ilic won by resignation"]

1. e4 {[%clk 0:02:59.8]} 1... c5 {[%clk 0:02:59.8]} 2. Nf3 {[%clk 0:03:00]} 2...
Nc6 {[%clk 0:02:59.4]} 3. Bb5 {[%clk 0:03:00.1]} 3... g6 {[%clk 0:02:58.6]} 4.
O-O {[%clk 0:02:59.7]} 4... Bg7 {[%clk 0:02:58.7]} 5. c3 {[%clk 0:03:00.1]} 5...
e5 {[%clk 0:02:58.6]} 6. d4 {[%clk 0:03:00.1]} 6... cxd4 {[%clk 0:02:58.2]} 7.
cxd4 {[%clk 0:03:01]} 7... Nxd4 {[%clk 0:02:57.3]} 8. Nxd4 {[%clk 0:03:00.9]}
8... exd4 {[%clk 0:02:57.5]} 9. Bf4 {[%clk 0:03:01.8]} 9... Ne7 {[%clk
0:02:56.7]} 10. Nd2 {[%clk 0:03:02.1]} 10... O-O {[%clk 0:02:56.3]} 11. Bd6
{[%clk 0:02:59.9]} 11... Re8 {[%clk 0:02:53.3]} 12. Bc4 {[%clk 0:02:58.2]} 12...
Nc6 {[%clk 0:02:50.3]} 13. f4 {[%clk 0:02:55]} 13... Qb6 {[%clk 0:02:44]} 14. e5
{[%clk 0:02:40.3]} 14... Ne7 {[%clk 0:02:34.1]} 15. g4 {[%clk 0:02:11.8]} 15...
d3+ {[%clk 0:02:04.1]} 16. Kh1 {[%clk 0:02:08.2]} 16... Qd4 {[%clk 0:01:56.8]}
17. Qb3 {[%clk 0:02:02.3]} 17... b5 {[%clk 0:01:26]} 18. Bxf7+ {[%clk
0:02:01.6]} 18... Kh8 {[%clk 0:01:26.1]} 19. Bxe8 {[%clk 0:01:45.2]} 19... Bb7+
{[%clk 0:01:25.3]} 20. Nf3 {[%clk 0:01:45.7]} 20... Rxe8 {[%clk 0:01:21.6]} 21.
Qf7 {[%clk 0:01:42.1]} 21... Rf8 {[%clk 0:01:19]} 22. Qxe7 {[%clk 0:01:41.4]}
22... Qxf4 {[%clk 0:01:18.7]} 23. Qh4 {[%clk 0:01:26.4]} 23... Bxf3+ {[%clk
0:01:15.9]} 24. Kg1 {[%clk 0:01:26.7]} 24... Qd4+ {[%clk 0:00:55]} 25. Qf2
{[%clk 0:01:25.1]} 25... Qxg4+ {[%clk 0:00:53.8]} 26. Qg3 {[%clk 0:01:24.9]}
26... Qd4+ {[%clk 0:00:53.7]} 27. Rf2 {[%clk 0:01:22.9]} 27... Rf4 {[%clk
0:00:48.4]} 28. h3 {[%clk 0:01:14.9]} 28... d2 {[%clk 0:00:38.2]} 29. Kh2 {[%clk
0:00:59.2]} 29... Bxe5 {[%clk 0:00:26.1]} 30. Bxe5+ {[%clk 0:00:58.8]} 30...
Qxe5 {[%clk 0:00:26.2]} 31. Rxf3 {[%clk 0:00:57.2]} 31... Qe2+ {[%clk
0:00:26.3]} 32. Qg2 {[%clk 0:00:32.2]} 32... Qxf3 {[%clk 0:00:25.3]} 33. Qxf3
{[%clk 0:00:32.4]} 33... Rxf3 {[%clk 0:00:25.5]} 34. Rd1 {[%clk 0:00:32.8]}
34... Rd3 {[%clk 0:00:25.7]} 35. Kg2 {[%clk 0:00:33.2]} 35... Kg7 {[%clk
0:00:25.7]} 36. Kf2 {[%clk 0:00:33.7]} 36... Kf6 {[%clk 0:00:26.1]} 37. h4
{[%clk 0:00:34.1]} 37... Kf5 {[%clk 0:00:25.8]} 38. Ke2 {[%clk 0:00:34.6]} 38...
Rd6 {[%clk 0:00:24.9]} 39. Rf1+ {[%clk 0:00:35.1]} 39... Kg4 {[%clk 0:00:24.6]}
40. Kd1 {[%clk 0:00:36]} 40... Kxh4 {[%clk 0:00:23.7]} 41. Rh1+ {[%clk
0:00:36.3]} 41... Kg4 {[%clk 0:00:21.7]} 42. Rxh7 {[%clk 0:00:37.2]} 42... g5
{[%clk 0:00:21.7]} 43. Rg7 {[%clk 0:00:37.2]} 43... Kf4 {[%clk 0:00:21.6]} 44.
Rf7+ {[%clk 0:00:37.5]} 44... Kg3 {[%clk 0:00:21.8]} 45. Rf5 {[%clk 0:00:37.8]}
45... g4 {[%clk 0:00:22.1]} 46. Rxb5 {[%clk 0:00:38.2]} 46... Kf3 {[%clk
0:00:20.5]} 47. Rf5+ {[%clk 0:00:38.3]} 47... Kg2 {[%clk 0:00:20.7]} 48. Ra5
{[%clk 0:00:36.5]} 48... g3 {[%clk 0:00:21.6]} 49. Rxa7 {[%clk 0:00:36.9]} 49...
Kg1 {[%clk 0:00:21.3]} 50. Ra6 {[%clk 0:00:35.3]} 50... Rxa6 {[%clk 0:00:20.6]}
51. Kxd2 {[%clk 0:00:35.2]} 51... g2 {[%clk 0:00:20.5]} 0-1